Cogmind - Beta 11.1 @@@ ROGUE MODE // 2022.06.06 @ 22:15:45 Player: Demise Result: Destroyed self with Mini Grenade Launcher Performance ------------- Evolutions (1) 500 Regions Visited (4) 800 Robots Destroyed (95) 475 Value Destroyed (2178) 2178 Prototype IDs (6) 120 Alien Tech Used (0) 0 Bonus (516) 516 TOTAL SCORE: 4589 Bonus ------- High Alert Combat Kills 466 Follower Combat Kills 50 Cogmind --------- Core Integrity 0/400 Matter 241/300 Energy 82/100 System Corruption 5% Temperature Cool (6) Movement Rolling (135) Ox3 Location -9/Storage Parts ------- > --- POWER (1) -------- (None) > --- PROPULSION (2) --- Armored Wheel Armored Wheel > --- UTILITY (4) ------ Cooling System Huge Storage Unit Utility Shielding > --- WEAPON (2) ------- Mini Grenade Launcher > --- INVENTORY (25) --- Armored Wheel Armored Wheel Structural Scanner Improved Terrain Scanner Seismic Detector Improved Light Armor Plating Hacking Suite Hacking Suite Hacking Suite System Shield System Shield System Shield System Shield Trap Extractor (0/4) Trap Extractor (0/4) Trap Extractor (4/4 Shock) Drone Bay (2/2) EM Pulse Gun Heavy Assault Rifle Autogun Grenade Launcher Datajack Flail Peak State ------------ > --- POWER ------------ Improved Ion Engine > --- PROPULSION ------- Armored Wheel Armored Wheel > --- UTILITY ---------- Huge Storage Unit Experimental Sensor Array Signal Interpreter Improved Light Armor Plating > --- WEAPON ----------- Heavy Assault Rifle Improved Assault Rifle > --- INVENTORY -------- Armored Wheel Armored Wheel Cooling System Structural Scanner Improved Terrain Scanner Seismic Detector Utility Shielding Improved Light Armor Plating Hacking Suite Hacking Suite System Shield System Shield System Shield System Shield Trap Extractor Trap Extractor Trap Extractor EM Pulse Gun Heavy Assault Rifle Heavy Assault Rifle Autogun Grenade Launcher Mini Grenade Launcher Datajack Flail [Rating: 30] Favorites ----------- Power Improved Ion Engine Engine Improved Ion Engine Propulsion Armored Wheel Leg Aluminum Leg Wheel Armored Wheel Flight Unit Improved Flight Unit Utility Signal Interpreter Device Seismic Detector Storage Huge Storage Unit Processor Signal Interpreter Protection Improved Light Armor Plating Weapon Heavy Assault Rifle Energy Gun Small Laser Ballistic Gun Heavy Assault Rifle Ballistic Cannon Improved Light Cannon Launcher Mini Grenade Launcher Impact Weapon Flail Special Melee Weapon Datajack Build | -11 -10 -10 -9 -9 ------- Run | Scr Mat Min Mat Sto Slots Evolved 2 | . . . 2 . Power . | . . . . . Propulsion . | . . . . . Utility 2 | . . . 2 . Weapon . | . . . . . Parts Attached 90 | 8 19 4 49 10 Power 5 | 1 1 . 3 . Engine 5 | 1 1 . 3 . Core . | . . . . . Reactor . | . . . . . Propulsion 17 | 2 8 . 7 . Treads . | . . . . . Leg 1 | . 1 . . . Wheel 15 | 2 7 . 6 . Hover . | . . . . . Flight 1 | . . . 1 . Utility 35 | 2 7 2 15 9 Device 13 | 1 2 1 3 6 Storage 5 | 1 2 . 2 . Processor 2 | . 1 . 1 . Hackware . | . . . . . Protection 15 | . 2 1 9 3 Artifact . | . . . . . Weapon 33 | 3 3 2 24 1 Energy Gun 8 | 2 2 1 3 . Energy Cannon . | . . . . . Ballistic Gun 17 | 1 1 . 15 . Ballistic Cannon 2 | . . . 2 . Launcher 2 | . . 1 . 1 Special Weapon . | . . . . . Impact Weapon 1 | . . . 1 . Slashing Weapon . | . . . . . Piercing Weapon . | . . . . . Special Melee Weapon 3 | . . . 3 . Unidentified Prototypes 3 | . . . 3 . Parts Lost 15 | . 6 . 5 4 Power 3 | . 1 . 1 1 Propulsion 4 | . 2 . 2 . Utility 3 | . 1 . 1 1 Weapon 5 | . 2 . 1 2 Highest Loss Streak 5 | . 5 . 2 4 To Critical Strikes . | . . . . . Average Slot Usage (%) 93 | . 92 85 94 99 Engine 7 | . 10 . 7 10 Wheel 23 | . 26 28 21 22 Device 4 | . 5 10 2 9 Storage 11 | . 14 14 11 11 Processor 7 | . 4 . 10 4 Protection 14 | . 1 3 19 19 Energy Gun 4 | . 13 13 . . Ballistic Gun 18 | . 13 14 20 21 Naked Turns . | . . . . . Heaviest Build 99 | 13 37 23 98 99 Greatest Support 24 | 20 24 24 24 24 Greatest Overweight (x) 7 | . 2 . 7 4 Average Overweight (x) 1 | . . . 2 4 Largest Inventory Capacity 25 | 8 15 15 25 25 Average Capacity 18 | 7 11 15 20 25 Most Carried 25 | 8 15 13 25 25 Average Carried 15 | 4 9 12 18 24 Final Capacity 25 | 8 15 15 25 25 Final Carried 25 | 8 13 13 25 23 Class Distribution -------------------- 97% | Mutant Dominant Class ---------------- Mutant | -10/Materials Mutant | -10/Mines Mutant | -9/Materials Mutant | -9/Storage Resources | -11 -10 -10 -9 -9 ----------- Run | Scr Mat Min Mat Sto Matter Collected 2496 | 302 221 75 1638 260 Remotely . | . . . . . Salvage Created 3636 | 211 472 73 2387 493 Parts 245 | 17 24 3 170 31 Haulers Intercepted 6 | . 1 . 5 . Recyclers Shooed 2 | 1 . . 1 . Parts Field Recycled . | . . . . . Retrieved Matter . | . . . . . Parts Self-Destructed . | . . . . . Prevented . | . . . . . Kills | -11 -10 -10 -9 -9 ------- Run | Scr Mat Min Mat Sto Combat Hostiles Destroyed 69 | . 8 2 50 9 Guns 63 | . 8 . 47 8 Cannons 3 | . . . 3 . AOE 3 | . . 2 . 1 Classes Destroyed 10 | 3 3 . 4 . Worker 13 | 2 2 . 9 . Tunneler 5 | 5 . . . . Hauler 6 | . 1 . 5 . Recycler 1 | 1 . . . . Operator 5 | . 1 . 3 1 Watcher 5 | . . . 4 1 Swarmer 12 | . . . 12 . Grunt 44 | . 8 2 29 5 Brawler 2 | . . . 1 1 Sentry 11 | . . . 8 3 Best Kill Streak 7 | 4 2 2 7 4 Combat Bots Only 7 | . 2 2 7 4 Max Kills in Single Turn 2 | 1 1 1 2 1 Gunslinging 1 | . . . 1 . Exploded 1 | . . 1 . 1 Melee . | . . . . . Uniques/NPCs Destroyed . | . . . . . Combat | -11 -10 -10 -9 -9 -------- Run | Scr Mat Min Mat Sto Damage Taken 3050 | . 621 15 1639 775 Core 552 | . 145 . 292 115 Absorbed by Shields . | . . . . . Redirected to Shielding 197 | . 54 . 126 17 Regen/Repaired (Parts) 289 | . 72 . 217 . Core Remaining (%) 71 | 100 . 42 . . Volleys Fired 300 | 22 67 4 174 33 Largest 2 | 2 2 2 2 2 Hottest 78 | 60 60 60 78 46 Shots Fired 584 | 43 128 6 344 63 Gun 575 | 43 128 4 338 62 Cannon 6 | . . . 6 . Launcher 3 | . . 2 . 1 Special . | . . . . . Kinetic 491 | 22 67 2 338 62 Thermal 82 | 21 53 2 6 . Explosive 3 | . . 2 . 1 Electromagnetic 8 | . 8 . . . Robot Hit Streak 11 | 5 11 3 9 10 Robot Miss Streak 5 | 3 3 1 5 2 Penetration Max . | . . . . . Secondary Targets 5 | . . . 4 1 Max Gunslinging Chain 1 | . . . 1 1 Shots Hit Robots 356 | 22 79 4 206 45 Core Hits 155 | 11 32 3 87 22 Critical Kills 1 | . . . 1 . Critical Parts Destroyed 2 | . 1 . 1 . Critical Strikes 4 | . 1 . 3 . Destroy 4 | . 1 . 3 . Melee Attacks 3 | . . . 3 . Impact 3 | . . . 3 . Slashing . | . . . . . Piercing . | . . . . . Sneak Attacks 1 | . . . 1 . Combat Hostiles . | . . . . . Follow-up Attacks . | . . . . . Damage Inflicted 5461 | 212 808 144 3358 939 Guns 5018 | 212 808 29 3249 720 Cannons 70 | . . . 70 . Explosions 334 | . . 115 . 219 Melee 39 | . . . 39 . Ramming . | . . . . . Kinetic 4447 | 92 365 9 3261 720 Thermal 546 | 120 348 20 58 . Explosive 334 | . . 115 . 219 Electromagnetic 95 | . 95 . . . Impact 39 | . . . 39 . Slashing . | . . . . . Piercing . | . . . . . Highest Corruption 5 | . . . 5 5 Average Corruption 4 | . . . 4 5 Corruption Purged . | . . . . . Corruption Blocked . | . . . . . Effects 75 | . . . 64 11 Message Errors 21 | . . . 20 1 Matter Fused 21 | . . . 16 5 Heat Flow Errors 4 | . . . 4 . Energy Discharges 12 | . . . 9 3 Data Loss (minor) 7 | . . . 7 . Data Loss (major) 6 | . . . 4 2 Misfires 4 | . . . 4 . Overload Shots . | . . . . . Overflow Damage 19 | . . . 19 . Projectiles . | . . . . . Explosions . | . . . . . Melee 19 | . . . 19 . Knockbacks . | . . . . . Impact . | . . . . . Kinetic . | . . . . . Secondary . | . . . . . Self-Inflicted Damage 49 | . . . . 49 Shots 1 | . . . . 1 Rammed . | . . . . . Targets Rammed . | . . . . . Kicked . | . . . . . Crushed . | . . . . . Highest Temperature 275 | 40 132 10 275 22 Average Temperature 37 | 20 38 7 45 9 Received Heat Transfer 1137 | . 330 9 510 288 Siege Activations . | . . . . . Robots Corrupted . | . . . . . Combat Hostiles . | . . . . . Parts Fried . | . . . . . Impact Corruptions 1 | . . . 1 . Robots Melted . | . . . . . Combat Hostiles . | . . . . . Parts Melted 1 | . 1 . . . Heat Transferred 1250 | 275 800 50 125 . Parts Sabotaged . | . . . . . Parts Stolen . | . . . . . Parts Stripped . | . . . . . Power Chain Reactions . | . . . . . Missiles Intercepted . | . . . . . Alert | -11 -10 -10 -9 -9 ------- Run | Scr Mat Min Mat Sto Peak Influence 1012 | 40 233 105 1012 726 Initial 427 | . 26 13 . 427 Average 457 | 17 84 100 643 560 Maximum Alert Level 3 | . 1 . 3 3 Low Security (%) 38 | 100 90 100 13 . Level 1 7 | . 9 . 9 . Level 2 17 | . . . 18 87 Level 3 36 | . . . 58 12 Level 4 . | . . . . . Level 5 . | . . . . . High Security . | . . . . . Max Security . | . . . . . Sterilizations 1 | . . . 1 . Squads Dispatched 16 | . 1 . 12 3 Investigation 9 | . 1 . 8 . Extermination . | . . . . . Reinforcement 5 | . . . 4 1 Assault 2 | . . . . 2 Garrison . | . . . . . Intercept . | . . . . . Searches Triggered . | . . . . . Construction Impeded 1 | . . . 1 . Haulers Reinforced . | . . . . . Active Scanning Responses . | . . . . . Cargo Convoy Interrupts . | . . . . . Stealth | -11 -10 -10 -9 -9 --------- Run | Scr Mat Min Mat Sto Distress Signals 4 | . . . 4 . Communications Jammed . | . . . . . Distress Signals . | . . . . . Times Spotted 122 | . 22 1 79 20 Peak Tracking Total 10 | . 4 1 10 8 Tactical Retreats 4 | . 2 . 1 1 Traps | -11 -10 -10 -9 -9 ------- Run | Scr Mat Min Mat Sto Traps Triggered 8 | . 3 . 2 3 Indirectly . | . . . . . Trap Hack Attempts 100 | . . . 100 . Triggered . | . . . . . Disarmed . | . . . . . Reprogrammed 7 | . . . 7 . Reused 1 | . . . 1 . Traps Extracted 4 | . . . 4 . Installed . | . . . . . Triggered 1 | . . . 1 . Most Traps Carried 4 | . . . 4 4 Machines | -11 -10 -10 -9 -9 ---------- Run | Scr Mat Min Mat Sto Machines Disabled 1 | . . . 1 . Max in Single Turn 1 | . . . 1 . Garrison Access 1 | . . . . 1 Machines Sabotaged . | . . . . . Garrisons Compromised . | . . . . . Overloaded Fab Kills . | . . . . . Hacking | -11 -10 -10 -9 -9 --------- Run | Scr Mat Min Mat Sto Machines Accessed 23 | . 6 . 14 3 Terminals 15 | . 5 . 9 1 Fabricators . | . . . . . Repair Stations 4 | . 1 . 2 1 Recycling Units 2 | . . . 2 . Scanalyzers 1 | . . . 1 . Garrison Access 1 | . . . . 1 Total Hacks 72 | . 22 . 45 5 Successful 42 | . 8 . 30 4 Failed 29 | . 13 . 15 1 Catastrophic 2 | . . . 2 . Database Lockouts 1 | . 1 . . . Manual 44 | . 18 . 26 . Terminals 45 | . 18 . 26 1 Fabricators . | . . . . . Repair Stations 18 | . 4 . 11 3 Recycling Units 5 | . . . 5 . Scanalyzers 3 | . . . 3 . Garrison Access 1 | . . . . 1 Terminal Hacks 9 | . 1 . 7 1 Robot Schematic 1 | . . . 1 . Robot Analysis 4 | . 1 . 3 . Prototype ID Bank 1 | . . . 1 . Open Door 1 | . . . . 1 Terminal Index 1 | . . . 1 . Locate Traps 1 | . . . 1 . Fabricator Hacks . | . . . . . Repair Station Hacks 16 | . 4 . 10 2 Scan Component 8 | . 2 . 5 1 Repair 8 | . 2 . 5 1 Recycling Unit Hacks 2 | . . . 2 . Retrieve Components 2 | . . . 2 . Scanalyzer 2 | . . . 2 . Insert Component 1 | . . . 1 . Analyze 1 | . . . 1 . Garrison Access Hacks 1 | . . . . 1 Seal Access 1 | . . . . 1 Unauthorized Hacks 12 | . 3 . 9 . Terminals 11 | . 3 . 8 . Botnet 9 | . 2 . 7 . Operators 2 | . 1 . 1 . Fabricators . | . . . . . Repair Stations . | . . . . . Recycling Units 1 | . . . 1 . Tunnel 1 | . . . 1 . Scanalyzers . | . . . . . Garrison Access . | . . . . . Data Cores Recovered . | . . . . . Used . | . . . . . Hacking Detections 19 | . 6 . 12 1 Full Trace Events 10 | . 3 . 7 . Feedback Events 1 | . . . 1 . Corruption 1 | . . . 1 . Feedback Blocked . | . . . . . Robot Schematics Acquired 1 | . . . 1 . Robots Built . | . . . . . Authchips . | . . . . . Time . | . . . . . Total Robot Build Rating . | . . . . . Part Schematics Acquired 1 | . . . 1 . Parts Built . | . . . . . Authchips . | . . . . . Time . | . . . . . Total Part Build Rating . | . . . . . Parts Repaired 7 | . 2 . 5 . Time 320 | . 64 . 148 108 Parts Recycled . | . . . . . Recycled Matter . | . . . . . Retrieved Matter . | . . . . . Retrieved Components 20 | . . . 20 . Parts Scanalyzed 1 | . . . 1 . Part Schematics Acquired 1 | . . . 1 . Parts Damaged . | . . . . . Bothacking | -11 -10 -10 -9 -9 ------------ Run | Scr Mat Min Mat Sto Used RIF Installer . | . . . . . Robots Hacked . | . . . . . Non-combat . | . . . . . Combat . | . . . . . Robot Hacks Applied . | . . . . . Relay Couplers Released . | . . . . . Fabnet Peak Effective % . | . . . . . Robots Rewired . | . . . . . Allies Hacked . | . . . . . Hacks Repelled . | . . . . . Allies | -11 -10 -10 -9 -9 -------- Run | Scr Mat Min Mat Sto Total Allies 3 | . . 1 . 2 Largest Group 2 | . . 1 . 2 Highest-Rated Group 62 | . . 31 . 62 Highest-Rated Ally 31 | . . 31 . 31 Total Orders . | . . . . . Ally Attacks 9 | . . . . 9 Total Damage 169 | . . . . 169 Kills 2 | . . . . 2 Allies Corrupted . | . . . . . Allies Melted . | . . . . . Intel | -11 -10 -10 -9 -9 ------- Run | Scr Mat Min Mat Sto Robot Analysis Total 4 | . 1 . 3 . Derelict Logs Recovered 1 | . . 1 . . Drone Launches . | . . . . . Drone Recoveries . | . . . . . Exploration | -11 -10 -10 -9 -9 ------------- Run | Scr Mat Min Mat Sto Turns Passed 4991 | 156 1035 411 3025 364 Spaces Moved 3066 | 88 847 438 1582 111 Core 2 | 2 . . . . Treads . | . . . . . Legs 3 | . 3 . . . Wheels 3061 | 86 844 438 1582 111 Hover . | . . . . . Flight . | . . . . . Fastest Speed 50 | 50 80 90 90 150 Average Speed 109 | 79 85 90 126 150 Slowest Speed 195 | 80 190 90 195 150 Overloaded Moves . | . . . . . Propulsion Burnouts . | . . . . . Robots Hopped . | . . . . . Cave-ins Triggered . | . . . . . Exploration Rate (%) 59 | 5 98 80 96 19 Regions Visited 4 Branch Regions 2 Pre-discovered Areas 2 | . . 1 1 . Known Exits Taken 3 | . 1 1 1 . Unknown Exits Taken 1 | 1 . . . . Scrap Searched 2 | . . 2 . . Spaces Dug 2 | . . . 2 . Terrain Destroyed 18 | . . 16 2 . Melee 2 | . . . 2 . Projectile . | . . . . . AOE 16 | . . 16 . . Terrain Rammed . | . . . . . Walls Destroyed . | . . . . . Machines Disabled . | . . . . . Actions | -11 -10 -10 -9 -9 --------- Run | Scr Mat Min Mat Sto Total 4140 | 133 1042 447 2270 248 Wait 455 | 1 82 . 310 62 Move 3062 | 87 846 437 1581 111 Hop . | . . . . . Pick Up 55 | 12 15 1 25 2 Fast Attach 29 | 6 7 . 14 2 Attach 18 | 1 5 . 10 2 Detach 9 | . 3 . 4 2 Swap 44 | 1 7 4 26 6 Drop 41 | 3 10 1 23 4 Fire 300 | 22 67 4 174 33 Melee 3 | . . . 3 . Ram . | . . . . . Kick . | . . . . . Crush . | . . . . . Escape Stasis 24 | . . . . 24 Rewire . | . . . . . Trap 100 | . . . 100 . Miscellaneous . | . . . . . Route ------- -11/Scrapyard -10/Materials (discovered 4 exits: *Mat x3 / *Min) -10/Mines -9/Materials (discovered 6 exits: *Mat x3 / [*Min x2] / *Sto) -9/Storage History --------- Turn | Location | Event 33 | -11/Scrapyard | Discovered new exit (range 16) 157 | -11/Scrapyard | Entered Materials 312 | -10/Materials | Build established: Mutant 371 | -10/Materials | Discovered new exit (range 7) 531 | -10/Materials | Discovered new exit (range 12) 709 | -10/Materials | Discovered new exit (range 13) 713 | -10/Materials | Lost 5 parts (2n1u2w) 851 | -10/Materials | Identified exit to Materials 922 | -10/Materials | Identified exit to Mines 952 | -10/Materials | Core integrity fell below 50% 1040 | -10/Materials | Discovered exit to Materials (range 13) 1087 | -10/Materials | Repaired Lgt. Assault Rifle 1126 | -10/Materials | Repaired Imp. Terrain Scanner 1153 | -10/Materials | Central database locked down 1192 | -10/Materials | Entered Mines 1311 | -10/Mines | Discovered exit to Materials (range 10) 1420 | -10/Mines | Found a damaged Exp. Sensor Array with a note attached 1423 | -10/Mines | Found Prototype Device 1508 | -10/Mines | Received a Mining Laser from a helpful Derelict 1603 | -10/Mines | Entered Materials 1603 | -9/Materials | Evolved 2 slots: Utility x2 1620 | -9/Materials | Discovered new exit (range 13) 1894 | -9/Materials | Discovered new exit (range 4) 1900 | -9/Materials | Identified exit to Materials 1933 | -9/Materials | Discovered new exit (range 15) 2122 | -9/Materials | Repaired Weapon Shielding 2156 | -9/Materials | Repaired Arm. Wheel 2189 | -9/Materials | Repaired Hvy. Assault Rifle 2364 | -9/Materials | Destroyed 7 combat bots 2431 | -9/Materials | Repaired Weapon Shielding 2465 | -9/Materials | Repaired Hvy. Assault Rifle 2583 | -9/Materials | Core integrity fell below 50% 2634 | -9/Materials | Identified Exp. Sensor Array 2644 | -9/Materials | Discovered exit to Materials (range 8) 3044 | -9/Materials | Discovered exit to Materials (range 8) 3453 | -9/Materials | Discovered new exit (range 16) 3714 | -9/Materials | Identified exit to Storage 4526 | -9/Materials | Sterilization system engaged 4526 | -9/Materials | Non-combat units ordered to evacuate 4626 | -9/Materials | Combat units ordered to evacuate 4628 | -9/Materials | Entered Storage 4881 | -9/Storage | Core integrity fell below 20% 4892 | -9/Storage | Met a pair of Derelict thieves 4992 | -9/Storage | Destroyed self with Mini Grenade Launcher Last Messages --------------- 04978_ B-36 Bruiser sneak attacks. 04978_ U-05 Engineer lays Concrete. 04980_ K-01 Serf collects debris. 04981_ U-05 Engineer lays Concrete. 04981_ U-05 Engineer builds a Wall. 04981_ U-05 Engineer lays Concrete. 04982_ 8T-YUW(g) destroyed. 04982_ U-05 Engineer lays Concrete. 04983_ K-01 Serf collects debris. 04983_ U-05 Engineer lays Concrete. 04986_ K-01 Serf collects debris. 04986_ U-05 Engineer lays Concrete. 04987_ K-01 Serf collects debris. 04987_ Hvy. Assault Rifle destroyed. 04987_ Imp. Ion Engine destroyed. 04987_ B-36 Bruiser destroyed. 04989_ K-01 Serf collects debris. 04991_ Imp. Assault Rifle destroyed. 04992_ Imp. Light Armor Plating destroyed. 04992_ G-34 Mercenary destroyed. Map ----- +----------------------------------------------------+ | ?????????????????????????????????????????????????? | | ?????????????????????????????????????????????????? | | ?????????????????????????????????????????????????? | | ?????????????????????????????????????????????????? | | ?????????????????????????????????????????????????? | | ?????????????????????????????????????????????????? | | ?????????????????????????????????????????????????? | | ?????????????????????????????????????????????????? | | ?????????????????????????????????????????????????? | | ?????????????????????????????????????????????????? | | ?????????????????????????????????????????????????? | | ?????????????????????????????????????????????????? | | ?????????????????????????????????????????????????? | | ?????????????????????????????????????????????????? | | ?????????????????????????????????????????????????? | | ????????????????????????????????????????????###### | | ??????????????????????????????????????????### ! !# | | ???????????????????????????????????########T# !! # | | ???????????????????????????????????# =# " # | | ???????????????????????????????????# *#! !# | | ???????????????????????????????????# =%+=!" ! # | | ??????????????????????????######???# [# [#! !!# | | ????????????????????????### # ##??# ! ######### | | ???????????????????????####T######### ##???????? | | ?????????????????????####!= % #[ #????????? | | ?????????????????????#"""@bi # ########?? | | ?????????????????????#"Rg=l%u # # #!!!!#?? | | ?????????????????????#"""*g!k % + %[+ #?? | | ?????????????????????####%g # = # #[!!!#?? | | ???????????????????????##%m[k uu #% #T######?? | | ????????????????? +[=% u #% ###??????? | | ??????????????????########## ######## * #????????? | | ??????????????????????????###########! ########## | | ???????????????????????????# #%* # | | ???????????????????????????# """"" # + | | ???????????????????????????# """"" # # | | ???????????????????????????# """"" !#=^^# | | ???????????????????????????# *+ ^+ | | ???????????????????????????# "" !!!#= # | | ???????????????????????????# "G ! # # | | ???????????????????????????# "" # #? | | ???????????????????????????# !# #?######## | | ???????????????????????????########## #????????? | | ????????????????????????????????????#####????????? | | ?????????????????????????????????????????????????? | | ?????????????????????????????????????????????????? | | ?????????????????????????????????????????????????? | | ?????????????????????????????????????????????????? | | | | | +----------------------------------------------------+ Best States ------------- Heat Dissipation 50 Energy Generation 12 Energy Capacity 265 Matter Stores 300 Matter Capacity 300 Sight Range 16 Robot Scan Range 20 Terrain Scan Density 10 Armor Coverage 150 Utility Shielding 33 Weapon Shielding 33 Evasion (%) 44 Trap Extractor Capacity 4 Item Schematics ----------------- Exp. Sensor Array | -9/Materials | Scanalyzed Robot Schematics ------------------ Y-45 Defender | -9/Materials | Hacked Fabricated ------------ Nothing Alien Tech Used ----------------- None Achievements -------------- None Challenges ------------ None Game ------ Seed CooledTransmissionProcessor Manual? 0 Play Time 00:44:43 Cumulative 575.5 hours Start 2022.06.06 @ 21:10:38 End 2022.06.06 @ 22:15:45 Sessions 3 Manual Loads 0 Difficulty Rogue Special Mode None Game No. 464 Rogue 464 Adventurer 0 Explorer 0 Win Type - Total 5 Types 4/0/0/1/0/0/0/0/0 Lore% 71 Gallery% 84 Achievement% 66 Wizard Run 0 Options --------- ASCII 0 Keyboard 1 Movement Numpad Keybinds 0 Fullscreen 1 Font 12/Terminus Map View 83x54 Tactical HUD 1 Map Filters NONE Filters NONE Steam 1 RUN: cca0c83b-271b-46e9-a6f3-c4ab89a283ff